[Event "Asian Amateur-ch Open 2022"]
[Site "Muscat"]
[Date "2022.10.03"]
[Round "7.6"]
[White "Shahali, Milad"]
[Black "Muhammad Shahzeb"]
[Result "1-0"]
[ECO "B01"]
[WhiteElo "1910"]
[BlackElo "1992"]
[Annotator "TA"]
[PlyCount "65"]
[EventDate "2022.09.29"]
[EventType "swiss"]
[EventCountry "OMN"]
[SourceTitle "playchess.com"]
[Source "ChessBase"]
[SourceQuality "1"]
[TimeControl "5400+30"]

{[%evp 9,65,58,70,31,41,41,50,52,60,48,65,42,42,53,48,45,48,68,65,50,65,80,210,213,199,207,221,206,214,183,342,340,387,365,340,337,602,590,707,696,700,679,745,722,740,739,741,722,742,730,728,715,707,699,657,648,687,672]} 1. e4 {[%emt 0:00:11]} d5 {[%emt 0:00:01]} 2. exd5 {[%emt 0:00:09]} Nf6 {[%emt 0:00:03]} 3. d4 {[%emt 0:00:35]} Nxd5 {[%emt 0:00:11]} 4. Nf3 {[%emt 0:00:29]} g6 {[%emt 0:00:06]} 5. c4 {[%emt 0:00:19]} Nb6 {[%emt 0:00:02]} 6. a4 {[%emt 0:00:19] B01: Scandinavian Defence.} a5 {[%emt 0:00:15]} 7. c5 {[%emt 0:00:12]} Nd5 {[%emt 0:00:09]} 8. Bc4 {[%emt 0:00:20] White is slightly better.} Nc6 {[%emt 0:04:32]} 9. Qb3 {[%emt 0:09:39]} Ncb4 {[%emt 0:00:16]} 10. Bd2 {[%emt 0:05:58] [#] Strongly threatening Bxb4.} (10. Nc3 $5 {[%cal Rc3d5]} Be6 11. Ng5 $14) 10... e6 $146 {[%emt 0:03:09]} ({Predecessor:} 10... c6 11. Bxb4 axb4 12. O-O Bh6 13. Bxd5 Qxd5 14. Qxb4 O-O 15. Nc3 Qd8 16. h3 Rb8 {½-½ (51) Stetsko,L (2042)-Sevostianov,P (2284) Chervonograd 2008}) 11. Nc3 {[%emt 0:05:00]} Bg7 {[%emt 0:01:21]} 12. Bg5 {[%emt 0:02:11]} f6 {[%emt 0:01:10]} 13. Bd2 {[%emt 0:05:39]} O-O {[%emt 0:01:43]} 14. O-O {[%emt 0:03:00][%cal Bh1f1,Bf1e1,Be1e6][%mdl 32]} b6 {[%emt 0:10:57]} 15. Rfe1 {[%emt 0:08:23] White is more active.} bxc5 {[%emt 0:16:10] This costs Black the game.} (15... Rf7 $16) 16. dxc5 $18 {[%emt 0:01:25]} Kh8 {[%emt 0:19:16]} 17. Rad1 {[%emt 0:05:57]} c6 {[%emt 0:07:44] [#]} 18. Nd4 $1 {[%emt 0:10:54]} Rb8 {[%emt 0:10:42]} 19. Rxe6 {[%emt 0:04:04]} ({Don't play} 19. Nxe6 $6 Bxe6 20. Rxe6 Nd3 $16) 19... Qc7 {[%emt 0:08:19]} (19... Bxe6 {was called for.} 20. Nxe6 Qe7 21. Nxf8 (21. Nxd5 Nxd5 22. Qh3 Rfe8 $11) 21... Rxf8 22. Bxd5 cxd5) 20. Bxd5 {[%emt 0:10:44] Black must now prevent Bc4.} (20. Nxd5 cxd5 21. Bb5 (21. Bxd5 Qxc5 22. Bf4 Qxd5 $16) 21... Qxc5 $16) 20... Nxd5 {[%emt 0:08:35]} 21. Nxd5 {[%emt 0:25:32]} Bxe6 {[%emt 0:00:49]} 22. Nxe6 {[%emt 0:00:00]} (22. Nxc7 Bxb3 23. Nxb3 Rxb3 $11) 22... Rxb3 $2 {[%emt 0:00:26]} (22... cxd5 23. Qxd5 (23. Nxc7 Rxb3 24. Bxa5 Rc8 $14) 23... Qf7) 23. Ndxc7 {[%emt 0:00:00] Pair of Knights! White is clearly winning.} ({Less strong is} 23. Nexc7 Rc8 $14) 23... Rfb8 {[%emt 0:02:23]} 24. Bxa5 {[%emt 0:00:00]} Rxb2 {[%emt 0:00:12]} 25. Bb6 {[%emt 0:00:00]} Bf8 {[%emt 0:02:04]} 26. Nxf8 {[%emt 0:00:00]} Rxf8 {[%emt 0:00:10]} 27. a5 {[%emt 0:00:00]} Ra2 {[%emt 0:00:17]} 28. h3 {[%emt 0:00:00]} Rf7 {[%emt 0:00:16]} 29. a6 {[%emt 0:00:00]} Kg7 {[%emt 0:01:50]} 30. a7 {[%emt 0:00:00]} Rxc7 {[%emt 0:00:19]} 31. Bxc7 {[%emt 0:00:00]} Rxa7 {[%emt 0:00:02]} 32. Bb6 {[%emt 0:00:00]} Ra2 {[%emt 0:00:21]} 33. Rd6 {[%emt 0:00:00] Weighted Error Value: White=0.06 (flawless) /Black=0.37} 1-0

[Event "Asian Amateur-ch Open 2022"]
[Site "Muscat"]
[Date "2022.10.03"]
[Round "7.7"]
[White "Velavaa Ragavesh"]
[Black "Rafee, Mohd Hayel"]
[Result "1-0"]
[ECO "B50"]
[WhiteElo "1698"]
[BlackElo "1941"]
[Annotator "TA"]
[PlyCount "49"]
[EventDate "2022.09.29"]
[EventType "swiss"]
[EventCountry "OMN"]
[SourceTitle "playchess.com"]
[Source "ChessBase"]
[SourceQuality "1"]
[TimeControl "5400+30"]

{[%evp 14,49,54,61,70,37,97,70,191,169,288,171,759,751,733,731,937,854,1376,1357,29983,2009,29991,29992,29993,29994,29994,29995,29995,29996,29996,29997,29997,29996,29996,29997,29997,29998]} 1. e4 {[%emt 0:00:17]} c5 {[%emt 0:00:05]} 2. Nf3 {[%emt 0:00:19]} d6 {[%emt 0:00:04]} 3. c3 {[%emt 0:00:28]} Nf6 {[%emt 0:00:06]} 4. Be2 {[%emt 0:00:15]} Nc6 {[%emt 0:00:57]} 5. d4 {[%emt 0:01:15]} cxd4 {[%emt 0:00:07]} 6. cxd4 {[%emt 0:00:26]} d5 {[%emt 0:07:33]} 7. e5 {[%emt 0:01:52]} Ne4 {[%emt 0:08:46]} 8. O-O {[%emt 0:03:58]} h6 {[%emt 0:06:28] 8...Bg4 gains popularity. B50: Sicilian: 2...d6, Miscellaneous.} 9. Nc3 {[%emt 0:04:47] [#]} g5 $146 {[%emt 0:01:11]} (9... e6 $14) ({Predecessor:} 9... e6 10. Bd3 Ng5 11. Be3 Be7 12. Ne1 f5 13. exf6 Bxf6 14. Qh5+ Nf7 15. Nf3 Ne7 16. Bf4 {½-½ (38) Winter,O (2169)-Meissner,F (2381) Prague 2022}) 10. Be3 {[%emt 0:01:18]} f5 {[%emt 0:01:07]} (10... Nxc3 $14 11. bxc3 Bf5) 11. exf6 {[%emt 0:03:32]} exf6 {[%emt 0:07:00] [#]} (11... Nxc3 $142 12. f7+ (12. bxc3 exf6 13. Rb1 Bd6 $16) 12... Kxf7 13. bxc3 Bg7) 12. Nd2 {[%emt 0:11:53]} (12. Nxe4 $142 $1 dxe4 13. Nd2) 12... f5 $2 {[%emt 0:05:33]} (12... Nxc3 13. bxc3 (13. Bh5+ Kd7 $16) 13... Bd6) 13. Bh5+ $18 {[%emt 0:03:10]} Ke7 {[%emt 0:01:10]} 14. Ndxe4 {[%emt 0:00:06]} ({Weaker is} 14. Qb3 Nxc3 15. bxc3 (15. Qxc3 f4 $11) 15... f4 $16) 14... fxe4 {[%emt 0:22:56]} 15. f3 {[%emt 0:02:45]} exf3 {[%emt 0:03:47]} 16. Qxf3 {[%emt 0:00:46] [#] White wants to mate with Qf7+.} Kd7 {[%emt 0:15:51]} 17. Nxd5 {[%emt 0:06:44]} (17. Nb5 $142 Nb4 18. Rac1 Qe7 19. Bd2 g4 20. Bxg4+ Ke8 21. Rxc8+ Rxc8 22. Bxb4) 17... Kd6 {[%emt 0:02:19]} 18. Qg3+ {[%emt 0:06:48] White mates.} Kxd5 {[%emt 0:07:11]} 19. Bf7+ {[%emt 0:00:12]} Be6 {[%emt 0:00:42]} 20. Rf5+ {[%emt 0:00:21]} Ne5 {[%emt 0:02:05]} 21. Qxe5+ {[%emt 0:00:16]} Kc6 {[%emt 0:02:56]} 22. Rc1+ {[%emt 0:00:02]} Bc5 {[%emt 0:00:01]} 23. Qxc5+ {[%emt 0:00:09]} Kd7 {[%emt 0:00:26]} 24. Bxe6+ {[%emt 0:00:02]} Kxe6 {[%emt 0:01:51]} 25. Qe5+ {[%emt 0:51:19] Black got outplayed after the opening.  Weighted Error Value: White=0.14 (very precise) /Black=1.39} 1-0

[Event "Asian Amateur-ch Open 2022"]
[Site "Muscat"]
[Date "2022.10.03"]
[Round "7.8"]
[White "Thapa, Krishna"]
[Black "kloub.M"]
[Result "1-0"]
[ECO "E01"]
[WhiteElo "1928"]
[BlackElo "1687"]
[Annotator "TA"]
[PlyCount "79"]
[EventDate "2022.09.29"]
[EventType "swiss"]
[EventCountry "OMN"]
[SourceTitle "playchess.com"]
[Source "ChessBase"]
[SourceQuality "1"]
[TimeControl "5400+30"]

{[%evp 9,79,30,49,55,57,57,56,33,26,-20,-21,-8,57,49,79,76,78,75,84,66,117,124,111,111,122,130,126,72,72,75,73,72,77,78,97,108,141,151,144,140,349,349,348,345,359,360,390,386,398,387,399,399,407,409,377,358,438,402,447,444,447,437,674,425,707,693,900,814,794,779,1152,998]} 1. d4 {[%emt 0:00:02]} d5 {[%emt 0:00:08]} 2. Nf3 {[%emt 0:00:02]} e6 {[%emt 0:00:18]} 3. c4 {[%emt 0:00:46]} Nf6 {[%emt 0:00:12]} 4. g3 {[%emt 0:00:01]} c5 {[%emt 0:02:12]} 5. cxd5 {[%emt 0:00:07]} cxd4 {[%emt 0:00:11]} 6. dxe6 {[%emt 0:02:18] E01: Catalan: Early deviations.} (6. Qxd4 exd5 7. Bg2 Nc6 $11) 6... Bxe6 {[%emt 0:01:24]} 7. Qxd4 {[%emt 0:05:26]} ({But not} 7. Nxd4 Bc5 8. e3 Bxd4 9. Qxd4 Qxd4 10. exd4 Nc6 $11) 7... Nc6 {[%emt 0:00:54]} 8. Qa4 {[%emt 0:09:49] White is slightly better.} a6 {[%emt 0:11:02] [#]} 9. Nbd2 $146 {[%emt 0:16:41]} (9. Bg2 $142) ({Predecessor:} 9. Bd2 Qb6 10. Nc3 Bc5 11. e3 O-O-O 12. Be2 Rxd2 13. Nxd2 Qxb2 14. O-O Qxd2 15. Bxa6 {0-1 (86) Mihailova,A (1795)-Boucquet,E (2100) Veliko Gradiste 2021}) 9... b5 $11 {[%emt 0:00:36][%mdl 1024] Black has compensation.} 10. Qd1 {[%emt 0:01:48]} Bd5 {[%emt 0:09:15]} (10... Rc8 $11 11. a3 Bc5) 11. Bg2 $14 {[%emt 0:01:34]} Bb4 {[%emt 0:11:05]} 12. O-O {[%emt 0:01:34][%cal Oe2e4]} O-O {[%emt 0:01:21]} 13. a3 {[%emt 0:01:37]} Bd6 {[%emt 0:05:13]} 14. b4 {[%emt 0:02:14]} Re8 {[%emt 0:12:22]} (14... a5 $14) 15. Bb2 $16 {[%emt 0:00:56]} Rc8 {[%emt 0:00:23]} 16. Rc1 {[%emt 0:03:39]} Ne5 {[%emt 0:07:34]} 17. Rxc8 {[%emt 0:04:37]} Qxc8 {[%emt 0:00:06]} 18. Ne4 {[%emt 0:12:46]} Bxe4 {[%emt 0:14:00]} 19. Qxd6 {[%emt 0:01:08]} Nc4 {[%emt 0:02:56][%csl LRb2,LRd6]} 20. Qd4 {[%emt 0:01:15]} Rd8 {[%emt 0:00:47]} 21. Qc3 {[%emt 0:00:13]} Nxb2 {[%emt 0:05:51]} 22. Qxb2 {[%emt 0:00:01]} Qc2 {[%emt 0:03:11]} 23. Qxc2 {[%emt 0:01:56]} Bxc2 {[%emt 0:00:08]} 24. Rc1 {[%emt 0:01:49]} Bd1 {[%emt 0:05:42] [#] This move loses the game for Black.} (24... Bf5 $16 {was necessary.} 25. Ne5 Rd2) 25. Nd4 $1 $18 {[%emt 0:02:40][%mdl 512]} Ba4 {[%emt 0:01:32] [#]} 26. Rc6 $1 {[%emt 0:02:08]} h6 {[%emt 0:00:06]} (26... g6 27. e3) 27. e3 {[%emt 0:00:14]} Nd5 {[%emt 0:01:40]} 28. Bxd5 {[%emt 0:00:44]} Rxd5 {[%emt 0:00:08]} 29. Rxa6 {[%emt 0:00:14][%mdl 4096] Endgame KRB-KRN} Kf8 {[%emt 0:00:44]} 30. Ra7 {[%emt 0:00:30]} Ke8 {[%emt 0:01:10]} 31. Rc7 {[%emt 0:00:45]} Rd7 {[%emt 0:02:03]} 32. Rc5 {[%emt 0:01:33]} Rb7 {[%emt 0:00:15]} 33. f4 {[%emt 0:00:19][%cal Bf2f4,Bf4e5,Be5e6][%mdl 32]} Kd7 {[%emt 0:00:16]} 34. Kf2 {[%emt 0:00:19] White is clearly winning.} g6 {[%emt 0:00:49]} 35. e4 {[%emt 0:01:39]} Rc7 {[%emt 0:00:37]} (35... Rb8 $142 36. Ke3 Ra8) 36. Ke3 {[%emt 0:01:25]} f6 {[%emt 0:01:03]} (36... Rb7 $142 37. e5 h5) 37. e5 {[%emt 0:00:45] And now Rxc7+ would win.} fxe5 {[%emt 0:00:36]} 38. fxe5 {[%emt 0:00:07]} Rb7 {[%emt 0:00:56]} 39. Rc6 {[%emt 0:00:37]} Bb3 {[%emt 0:00:26]} 40. e6+ {[%emt 0:24:12] Weighted Error Value: White=0.16 (very precise) /Black=0.33} 1-0

[Event "Asian Amateur-ch Open 2022"]
[Site "Muscat"]
[Date "2022.10.03"]
[Round "7.9"]
[White "Maasarani, Mahmoud"]
[Black "Musallam Salim Al Aamri"]
[Result "1/2-1/2"]
[ECO "D03"]
[WhiteElo "1991"]
[BlackElo "1680"]
[Annotator "TA"]
[PlyCount "86"]
[EventDate "2022.09.29"]
[EventType "swiss"]
[EventCountry "OMN"]
[SourceTitle "playchess.com"]
[Source "ChessBase"]
[SourceQuality "1"]
[TimeControl "5400+30"]

{[%evp 22,86,0,0,-2,-17,0,0,0,0,0,0,0,0,0,-10,-9,-12,-5,-17,46,0,81,52,91,0,0,0,0,0,0,0,4,4,2,2,2,4,3,3,3,8,8,6,9,3,4,0,0,0,0,0,0,0,0,0,0,0,0,0,0,0,0,0,0,0,0]} 1. d4 {[%emt 0:00:30]} Nf6 {[%emt 0:00:30]} 2. Nf3 {[%emt 0:00:18]} e6 {[%emt 0:00:00]} 3. Bg5 {[%emt 0:02:02]} h6 {[%emt 0:00:31]} 4. Bh4 {[%emt 0:00:02]} c5 {[%emt 0:04:31]} 5. e3 {[%emt 0:00:04]} Be7 {[%emt 0:01:50]} 6. Bd3 {[%emt 0:01:30]} d5 {[%emt 0:02:33]} 7. c3 {[%emt 0:02:37]} Nbd7 {[%emt 0:02:09]} 8. O-O {[%emt 0:00:20]} O-O {[%emt 0:00:34]} 9. Nbd2 {[%emt 0:00:48]} b6 {[%emt 0:00:46]} 10. e4 {[%emt 0:26:23]} dxe4 {[%emt 0:07:05]} 11. Nxe4 {[%emt 0:02:46]} Bb7 {[%emt 0:02:07]} 12. Re1 {[%emt 0:01:53]} Rc8 {[%emt 0:02:54] D03: 1 d4 d5 2 Nf3 Nf6 3 Bg5, including Torre Attack with early ...d5.} 13. Bg3 {[%emt 0:03:45] [#]} Nxe4 $146 {[%emt 0:04:17]} ({Predecessor:} 13... cxd4 14. cxd4 Nxe4 15. Bxe4 Bxe4 16. Rxe4 Nf6 17. Re2 Nd5 18. Qa4 a5 19. a3 Bd6 {1-0 (57) Romero,J-Crespo Fernandez,J Asturias 1998}) 14. Bxe4 {[%emt 0:00:02]} Bxe4 {[%emt 0:00:21]} 15. Rxe4 {[%emt 0:00:01]} Nf6 {[%emt 0:00:17]} 16. Re1 {[%emt 0:00:47]} cxd4 {[%emt 0:04:00]} 17. Nxd4 {[%emt 0:01:04]} Rc5 {[%emt 0:02:20]} 18. Qa4 {[%emt 0:02:43]} Qa8 {[%emt 0:04:08]} 19. Rad1 {[%emt 0:02:51]} Rfc8 {[%emt 0:10:04]} 20. Qb3 {[%emt 0:02:53][%cal Od4e6] Hoping for Nxe6!} Kh8 {[%emt 0:03:44]} ({Better is} 20... Rd5 $11) 21. Nf3 {[%emt 0:01:28]} (21. f4 $1 $14 {is superior.}) 21... Ne4 {[%emt 0:08:45]} (21... Qb7 $11) 22. Ne5 {[%emt 0:01:55]} Kg8 {[%emt 0:04:09] [#]} 23. Rd7 {[%emt 0:03:36]} ({White should play} 23. Nxf7 $1 $16 Kxf7 24. Rd4 (24. Rd7 $2 Qc6 $19)) 23... Rxe5 $1 $11 {[%emt 0:07:37] The position is equal.} 24. Bxe5 {[%emt 0:03:12]} Nc5 {[%emt 0:00:19][%csl LRb3,LRd7]} 25. Qd1 {[%emt 0:00:15]} Nxd7 {[%emt 0:01:45]} 26. Qxd7 {[%emt 0:00:03]} Bf8 {[%emt 0:03:44]} 27. Rd1 {[%emt 0:03:08]} Rc5 $132 {[%emt 0:00:34][%mdl 2048] Black is fighting back} 28. Bg3 {[%emt 0:03:41]} Rd5 {[%emt 0:03:02]} 29. Rxd5 {[%emt 0:00:11]} Qxd5 {[%emt 0:00:18]} 30. Qxd5 {[%emt 0:00:07]} exd5 {[%emt 0:00:02][%mdl 4096] Endgame KB-KB} 31. Kf1 {[%emt 0:07:56]} f6 {[%emt 0:03:50]} 32. Ke2 {[%emt 0:02:15]} Kf7 {[%emt 0:00:19]} 33. Kd3 {[%emt 0:03:04]} Ke6 {[%emt 0:00:21]} 34. a4 {[%emt 0:01:27]} Bd6 {[%emt 0:05:00]} 35. Bxd6 {[%emt 0:00:15]} Kxd6 {[%emt 0:00:02] KP-KP} 36. Kd4 {[%emt 0:00:15]} Kc6 {[%emt 0:00:17]} 37. f4 {[%emt 0:03:13]} g6 {[%emt 0:01:10][%cal Bg7g6,Bg6g5][%mdl 32]} 38. g4 {[%emt 0:00:54] aiming for b4.} g5 {[%emt 0:03:46]} 39. f5 {[%emt 0:01:50] And now b4 would win.} a6 $1 {[%emt 0:00:56]} 40. c4 {[%emt 0:07:20]} dxc4 {[%emt 0:00:19]} 41. Kxc4 {[%emt 0:00:01]} Kd6 $1 {[%emt 0:00:53]} 42. Kd4 {[%emt 0:00:26]} Kc6 $1 {[%emt 0:00:20]} 43. b4 {[%emt 0:04:48]} b5 {[%emt 0:09:51] Weighted Error Value: White=0.09 (flawless) /Black=0.10 (very precise)} 1/2-1/2

[Event "Asian Amateur-ch Open 2022"]
[Site "Muscat"]
[Date "2022.10.03"]
[Round "7.10"]
[White "Owlad, Ehsan"]
[Black "UMER S.M"]
[Result "1/2-1/2"]
[ECO "A49"]
[WhiteElo "1962"]
[BlackElo "1631"]
[Annotator "TA"]
[PlyCount "80"]
[EventDate "2022.09.29"]
[EventType "swiss"]
[EventCountry "OMN"]
[SourceTitle "playchess.com"]
[Source "ChessBase"]
[SourceQuality "1"]
[TimeControl "5400+30"]

{[%evp 10,80,31,0,31,6,12,-14,-7,-14,-33,-27,0,0,0,0,-8,-45,4,4,0,0,0,2,12,-12,4,16,18,21,26,0,0,0,77,77,77,77,77,77,114,102,119,0,0,0,0,0,169,55,58,58,58,64,140,142,164,35,35,15,268,0,0,0,0,0,0,0,0,0,0,0,0]} 1. d4 {[%emt 0:00:05]} Nf6 {[%emt 0:00:09]} 2. Nf3 {[%emt 0:00:09]} g6 {[%emt 0:00:03]} 3. g3 {[%emt 0:00:21]} Bg7 {[%emt 0:00:02]} 4. Bg2 {[%emt 0:00:11]} O-O {[%emt 0:00:08]} 5. O-O {[%emt 0:00:04]} d6 {[%emt 0:00:06]} 6. Nbd2 {[%emt 0:01:58]} d5 {[%emt 0:02:33][%cal Oc7c5] A49: 1 d4 Nf6 2 Nf3 g6 3 g3: Anti-King's Indian systems.} 7. Re1 {[%emt 0:00:29]} c5 {[%emt 0:03:46]} 8. c3 {[%emt 0:00:56]} cxd4 {[%emt 0:01:47]} 9. cxd4 {[%emt 0:00:12]} Nc6 {[%emt 0:00:08] [#]} 10. b3 $146 {[%emt 0:01:24]} ({Predecessor:} 10. Qb3 Qd6 11. a3 b6 12. Nf1 Bf5 13. Bf4 Na5 14. Qc3 Qc6 15. Qb4 Qb7 16. Nh4 {1-0 (33) Hellwig,T (2172)-Ferreira,O (1980) Caleta 2015}) 10... Ne4 {[%emt 0:04:10]} 11. Bb2 {[%emt 0:00:46]} Qb6 {[%emt 0:02:09]} 12. Nxe4 {[%emt 0:04:18]} dxe4 {[%emt 0:00:03]} 13. Ne5 {[%emt 0:01:11]} (13. Nd2 $5 {[%cal Rd2c4]}) 13... Nxe5 {[%emt 0:01:20]} (13... Bxe5 $15 {is more appropriate.} 14. dxe5 Bf5) 14. dxe5 $11 {[%emt 0:00:03]} Bf5 {[%emt 0:02:45]} 15. Qd4 {[%emt 0:04:34]} Qxd4 {[%emt 0:07:19]} 16. Bxd4 {[%emt 0:02:16]} Rfd8 {[%emt 0:00:02]} 17. Rad1 {[%emt 0:02:33]} Rd7 {[%emt 0:13:12]} 18. e3 {[%emt 0:03:34]} Rad8 {[%emt 0:02:22][%cal Og7e5]} 19. Rc1 {[%emt 0:00:46]} b6 {[%emt 0:00:23]} 20. g4 {[%emt 0:05:33]} Bxg4 {[%emt 0:00:19]} 21. Bxe4 {[%emt 0:00:04]} f6 {[%emt 0:05:34] [#]} (21... Be6 $11) 22. Bc6 $1 $16 {[%emt 0:01:52]} fxe5 {[%emt 0:02:36]} 23. Bxd7 {[%emt 0:00:51] White is more active.} Rxd7 {[%emt 0:00:03]} 24. Bc3 {[%emt 0:03:29]} e4 {[%emt 0:03:13]} 25. Bxg7 {[%emt 0:06:02]} Kxg7 {[%emt 0:00:01][%mdl 4096] Endgame KRR-KRB} 26. Kg2 {[%emt 0:03:37]} (26. h3 $16 Bf3 27. Rc2) 26... Bf3+ $11 {[%emt 0:00:15]} 27. Kg3 {[%emt 0:00:36]} Rd5 $1 {[%emt 0:07:30]} 28. h4 {[%emt 0:00:57]} g5 $2 {[%emt 0:01:21]} (28... Rh5 $11 {and Black stays safe.}) 29. Rg1 {[%emt 0:15:46]} (29. Rc7 $18) 29... gxh4+ {[%emt 0:00:42]} 30. Kh3+ {[%emt 0:05:41]} Kf6 $1 {[%emt 0:00:25]} 31. Rc2 {[%emt 0:01:21][%mdl 1024] Prevents Rd2. White has compensation.} (31. Kxh4 Rh5+ 32. Kg3 Rg5+ 33. Kh4 Rh5+ 34. Kg3 Rg5+ 35. Kh4 Rh5+ $11) 31... Rf5 {[%emt 0:09:46]} (31... a5 $14) 32. Rc6+ $16 {[%emt 0:02:53]} ({Much weaker is} 32. Kxh4 $6 Rh5+ 33. Kg3 Rg5+ 34. Kh2 Rh5+ 35. Kg3 Rg5+ 36. Kh2 Rh5+ 37. Kg3 $11) 32... e6 {[%emt 0:03:10]} 33. Rg8 {[%emt 0:01:21]} ({Weaker is} 33. Kxh4 Rh5+ 34. Kg3 Rg5+ 35. Kh2 Rh5+ 36. Kg3 Rg5+ 37. Kh2 Rh5+ 38. Kg3 $11) (33. Rc7 $18) 33... Rd5 $1 $14 {[%emt 0:02:28] [#] Strongly threatening ...Rd1.} 34. Re8 {[%emt 0:03:02]} Rd1 $2 {[%emt 0:12:01][%mdl 8192]} (34... Kg5 $1 $11 {and Black is okay.} 35. Rg8+ Kf6) 35. Rexe6+ $2 {[%emt 0:01:34]} (35. Rcxe6+ $18 Kg5 36. Re5+ Kg6 37. R8e6+ (37. Kxh4 Rh1+ 38. Kg3 Rg1+ 39. Kh4 Rh1+ 40. Kg3 Rg1+ 41. Kh4 Rh1+ $11) 37... Kf7 38. Kxh4) 35... Kf5 $11 {[%emt 0:00:32][%cal Rd1h1] The position is equal.} 36. Kxh4 {[%emt 0:13:43] And now Rf6+ would win.} Rh1+ {[%emt 0:01:18]} 37. Kg3 {[%emt 0:00:06] aiming for Rf6+.} Rg1+ {[%emt 0:00:28]} 38. Kh3 {[%emt 0:00:54]} Rh1+ {[%emt 0:00:28]} 39. Kg3 {[%emt 0:00:10] Black must now prevent Rf6+.} Rg1+ {[%emt 0:00:01]} 40. Kh2 {[%emt 0:00:48]} Rh1+ {[%emt 0:15:52] Weighted Error Value: White=0.32/Black=0.29 (precise)} 1/2-1/2

[Event "Asian Amateur-ch Open 2022"]
[Site "Muscat"]
[Date "2022.10.03"]
[Round "7.11"]
[White "Al Amari, Mohammed"]
[Black "Sharaf, Khaleel"]
[Result "1-0"]
[ECO "D02"]
[WhiteElo "1646"]
[BlackElo "1874"]
[Annotator "NA RC COMBH"]
[PlyCount "106"]
[EventDate "2022.09.29"]
[EventType "swiss"]
[EventCountry "OMN"]
[SourceTitle "playchess.com"]
[Source "ChessBase"]
[SourceQuality "1"]
[TimeControl "5400+30"]

1. d4 {[%emt 0:03:22]} Nf6 {[%emt 0:00:17]} 2. Bf4 {[%emt 0:01:57]} d5 {[%emt 0:00:06]} 3. e3 {[%emt 0:01:43]} e6 {[%emt 0:00:21]} 4. Nf3 {[%emt 0:00:11]} Bd6 {[%emt 0:00:22]} 5. Bg3 {[%emt 0:00:28]} c5 {[%emt 0:00:36]} 6. dxc5 {[%emt 0:01:46]} Bxc5 {[%emt 0:00:39]} 7. Nbd2 {[%emt 0:00:18]} Nc6 {[%emt 0:01:33]} 8. c4 {[%emt 0:01:33]} O-O {[%emt 0:02:21]} 9. a3 {[%emt 0:00:30]} a5 {[%emt 0:02:00]} 10. Be2 {[%emt 0:02:00]} Re8 {[%emt 0:03:12]} 11. O-O {[%emt 0:00:16]} d4 {[%emt 0:00:51]} 12. Nb3 {[%emt 0:01:22]} Ba7 {[%emt 0:01:12]} 13. Nbxd4 {[%emt 0:01:26]} Nxd4 {[%emt 0:00:40]} 14. Nxd4 {[%emt 0:00:26]} Ne4 {[%emt 0:01:21]} 15. Nb5 {[%emt 0:01:59]} Nxg3 {[%emt 0:00:27]} 16. hxg3 {[%emt 0:00:07]} Qf6 {[%emt 0:03:53]} 17. Qc2 {[%emt 0:03:10]} Bb8 {[%emt 0:00:34]} 18. Rad1 {[%emt 0:00:59]} e5 {[%emt 0:00:04]} 19. c5 {[%emt 0:03:00]} Bf5 {[%emt 0:03:53]} 20. Bd3 {[%emt 0:04:24]} e4 {[%emt 0:00:18]} 21. Bc4 {[%emt 0:00:54]} Bg4 {[%emt 0:04:22]} 22. Rd2 {[%emt 0:00:45]} Qg6 {[%emt 0:10:10]} 23. Rd4 {[%emt 0:13:05]} Be5 {[%emt 0:13:45]} 24. Rd5 {[%emt 0:04:17]} Rad8 {[%emt 0:10:51]} 25. Qb3 {[%emt 0:06:18]} h5 {[%emt 0:06:21]} 26. Nd6 {[%emt 0:03:26]} Bxd6 {[%emt 0:03:03]} 27. Rxd6 {[%emt 0:03:38]} Rxd6 {[%emt 0:01:13]} 28. cxd6 {[%emt 0:00:11]} Rd8 {[%emt 0:07:29]} 29. Qxb7 {[%emt 0:00:19]} Rxd6 {[%emt 0:01:46]} 30. Qb8+ {[%emt 0:01:26]} Kh7 {[%emt 0:00:29]} 31. Bxf7 {[%emt 0:00:35]} Qf6 {[%emt 0:00:48]} 32. Qg8+ {[%emt 0:06:29]} Kh6 {[%emt 0:00:01]} 33. f4 {[%emt 0:01:02]} Rd8 {[%emt 0:00:42]} 34. Be8 {[%emt 0:00:52]} Bf5 {[%emt 0:04:06]} 35. Rc1 {[%emt 0:02:55]} Bg6 {[%emt 0:06:00]} 36. Qh8+ {[%emt 0:00:29]} Bh7 {[%emt 0:00:02]} 37. Rc5 {[%emt 0:01:13]} Qg6 {[%emt 0:03:13]} 38. Bxg6 {[%emt 0:01:00]} Rxh8 {[%emt 0:00:01]} 39. Bxh7 {[%emt 0:00:13]} Rxh7 {[%emt 0:00:03]} 40. Rxa5 {[%emt 0:00:10]} g6 {[%emt 0:00:27]} 41. Re5 {[%emt 0:01:57]} Rb7 {[%emt 0:00:03]} 42. b4 {[%emt 0:00:40]} Ra7 {[%emt 0:00:01]} 43. Ra5 {[%emt 0:00:15]} Rd7 {[%emt 0:00:04]} 44. b5 {[%emt 0:00:32]} h4 {[%emt 0:00:11]} 45. gxh4 {[%emt 0:00:42]} g5 {[%emt 0:00:45]} 46. hxg5+ {[%emt 0:02:16]} Kh5 {[%emt 0:00:06]} 47. b6 {[%emt 0:00:53]} Kg4 {[%emt 0:00:02]} 48. Rb5 {[%emt 0:00:40]} Kg3 {[%emt 0:00:05]} 49. Rb1 {[%emt 0:00:33]} Rd2 {[%emt 0:00:02]} 50. b7 {[%emt 0:00:38]} Rxg2+ {[%emt 0:00:03]} 51. Kf1 {[%emt 0:00:09]} Rh2 {[%emt 0:00:07]} 52. b8=Q {[%emt 0:00:18]} Kf3 {[%emt 0:00:01]} 53. Ke1 {[%emt 0:00:44]} Rh8 {[%emt 0:00:41]} 1-0